bitfinex-derivatives/quotes_ETHF0:USTF0_20260115
["timestamp","ask_amount","ask_price","bid_price","bid_amount"]
[1768493193358,1.07748131,3316.6,3314.6,0.15089]
[1768493193955,1.07748131,3316.6,3314.0,4.07456224]
[1768493194372,1.07748131,3316.6,3313.9,0.15421605]
[1768493195674,1.07456095,3316.4,3313.9,0.15421605]
[1768493196579,1.07456095,3316.1,3313.9,0.00329605]
[1768493196768,1.07456095,3315.9,3313.9,0.00329605]
[1768493197366,0.00452018,3315.2,3313.9,0.00329605]
[1768493197564,0.00452018,3315.2,3313.0,1.192]
[1768493197565,1.07456095,3315.1,3312.5,0.15098]
[1768493198480,1.07456095,3314.5,3312.5,0.00227221]
[1768493198772,1.07456095,3314.0,3311.2,1.05756224]
[1768493198982,1.07456095,3314.0,3311.4,1.05756224]
[1768493199164,1.07456095,3314.0,3312.2,0.151]
[1768493199365,1.07456095,3314.0,3311.4,1.05756224]
[1768493199366,1.07456095,3314.8,3312.3,0.15099]
[1768493199570,1.07669022,3314.8,3312.7,0.15097]
[1768493199766,1.07669022,3314.8,3312.3,0.00340938]
[1768493199972,1.07456095,3314.6,3312.3,0.00340938]
[1768493200370,1.07456095,3314.4,3312.3,0.00340938]
[1768493200566,1.07456095,3314.4,3312.5,0.15098]
[1768493201379,0.00212927,3314.8,3312.3,1.06097162]
[1768493201569,1.07669022,3314.8,3312.3,1.21196162]
[1768493202483,1.07669022,3314.8,3312.3,0.15439938]
[1768493202776,0.00452748,3313.9,3312.3,0.15439938]
[1768493203275,1.07908843,3313.9,3312.3,0.00340938]
[1768493208378,1.07456095,3313.8,3311.2,0.15104]
[1768493208779,1.22548095,3313.8,3311.3,0.15104]
[1768493209077,1.07456095,3313.6,3310.6,3.019]
[1768493209379,1.07456095,3313.6,3311.7,0.15102]
[1768493209678,1.07456095,3313.6,3311.0,1.05756224]
[1768493209887,0.00452748,3313.0,3311.9,0.15101]
[1768493210686,0.00452748,3313.0,3312.0,0.151]
[1768493211073,0.00452748,3313.0,3311.4,0.15103]
[1768493211687,1.23790672,3313.0,3311.4,0.15103]
[1768493211883,1.23790672,3313.0,3311.0,3.019]
[1768493212272,1.23790672,3313.0,3310.9,0.15106]
[1768493212877,1.23337924,3312.7,3310.6,0.00222631]
[1768493213586,1.23337924,3312.7,3310.6,1.24755172]
[1768493213791,0.00452748,3313.0,3310.6,1.24755172]
[1768493214379,0.00452748,3313.0,3311.2,0.15104]
[1768493214579,0.00452748,3313.0,3311.4,0.15103]
[1768493214985,1.23790672,3313.0,3310.8,0.15106]
[1768493215381,1.23790672,3313.0,3310.6,0.00222631]
[1768493215779,1.23337924,3312.5,3310.6,0.00222631]
[1768493217583,1.23790672,3313.0,3310.6,1.24755172]
[1768493217779,1.23790672,3313.0,3310.6,1.39862172]
[1768493218080,1.23790672,3313.0,3310.8,0.15106]
[1768493218681,1.23790672,3313.0,3310.6,0.00222631]
[1768493219391,1.23790672,3313.0,3311.1,0.15105]
[1768493219587,1.23337924,3312.8,3310.6,0.00222631]
[1768493219776,1.23337924,3312.6,3310.6,0.00222631]
[1768493219980,1.23337924,3312.3,3310.6,0.00222631]
[1768493220182,1.23580432,3312.3,3310.6,0.00222631]
[1768493220890,0.00242508,3312.3,3311.2,0.15104]
[1768493221290,1.23337924,3312.9,3311.5,0.15103]
[1768493221990,0.00452748,3313.0,3311.9,0.15101]
[1768493222178,1.23337924,3314.1,3311.6,1.24532541]
[1768493222384,1.23573504,3314.1,3312.3,0.15099]
[1768493222688,1.23573504,3314.1,3312.4,0.15099]
[1768493223287,1.23573504,3314.1,3311.7,0.15102]
[1768493223503,0.91308908,3314.0,3311.7,0.15102]
[1768493223689,1.23337924,3313.8,3311.7,0.15102]
[1768493223990,0.91298465,3313.7,3310.9,0.15105]
[1768493224196,0.00452748,3313.1,3310.9,0.15105]
[1768493224387,1.23337924,3313.0,3310.9,2.18909148]
[1768493224885,1.23337924,3313.0,3310.7,4.26532541]
[1768493225083,1.23337924,3313.0,3310.7,1.24532541]
[1768493225699,1.23337924,3313.0,3311.3,0.15104]
[1768493226598,1.23337924,3313.0,3310.7,1.24532541]
[1768493226896,1.23337924,3312.8,3310.6,0.15329631]
[1768493227288,1.23337924,3312.8,3310.7,0.15107]
[1768493228592,1.23337924,3312.6,3310.6,0.00222631]
[1768493228797,1.23337924,3312.6,3310.6,1.24755172]
[1768493229101,0.00452748,3313.1,3311.1,0.15105]
[1768493229291,0.9169588,3313.0,3311.1,0.15105]
[1768493229593,0.00452748,3313.1,3310.6,1.24755172]
[1768493229594,0.00452748,3313.1,3311.2,0.15104]
[1768493229897,1.23790672,3313.1,3311.2,0.15104]
[1768493231194,1.23790672,3313.1,3311.4,0.15103]
[1768493231494,0.00452748,3313.1,3311.4,1.24532541]
[1768493232796,0.00452748,3313.1,3312.0,0.15101]
[1768493232996,0.0023558,3314.1,3312.3,0.15099]
[1768493233198,0.0023558,3314.1,3312.4,0.15098]
[1768493233798,0.0023558,3314.1,3312.8,0.15097]
[1768493234097,0.0023558,3314.1,3313.0,0.15096]
[1768493234301,0.0023558,3314.1,3313.2,0.15095]
[1768493234893,1.23337924,3314.9,3313.2,0.15095]
[1768493235895,0.00268818,3314.9,3313.0,1.24841861]
[1768493236204,0.79850764,3316.0,3313.9,0.15092]
[1768493236508,0.79850764,3316.0,3314.0,0.15091]
[1768493237000,0.80215747,3316.0,3314.7,0.00452748]
[1768493237907,0.00364983,3316.0,3314.7,0.00452748]
[1768493238399,1.23337924,3315.8,3313.5,0.15093]
[1768493238598,1.23337924,3315.6,3313.0,0.0030932]
[1768493238899,1.23337924,3314.8,3313.0,0.0030932]
[1768493241404,1.23337924,3314.8,3313.1,0.15095]
[1768493241607,1.23337924,3314.8,3313.0,0.0030932]
[1768493243401,1.32273086,3314.4,3311.9,0.15101]
[1768493243597,1.32273086,3314.2,3311.9,0.15101]
[1768493243805,1.47364086,3314.2,3311.9,0.15101]
[1768493244208,0.00452748,3313.4,3311.9,0.15101]
[1768493244407,1.33703484,3313.4,3311.9,0.15331136]
[1768493246016,1.33703484,3313.4,3311.9,0.00230136]
[1768493246202,1.33703484,3313.4,3311.2,0.15104]
[1768493246203,1.33016626,3313.1,3310.5,0.15107]
[1768493246510,1.33016626,3313.1,3310.6,1.29474917]
[1768493246708,1.33016626,3313.1,3310.5,3.02]
[1768493246709,0.00686858,3313.4,3311.2,1.29474917]
[1768493247205,0.00686858,3313.4,3311.9,0.15101]
[1768493247406,0.00686858,3313.4,3311.3,1.44578917]
[1768493247708,0.00686858,3313.4,3311.6,0.15102]
[1768493247910,0.00686858,3313.4,3311.7,0.15102]
[1768493248118,0.00686858,3313.4,3311.8,0.15101]
[1768493248910,0.00686858,3313.4,3311.5,1.29474917]
[1768493249101,1.33016626,3314.3,3312.6,0.15098]
[1768493249301,1.33016626,3314.9,3312.7,3.02]
[1768493249508,1.33016626,3314.9,3312.8,1.29474917]
[1768493249811,1.33016626,3315.6,3313.5,0.15094]
[1768493250113,1.33262741,3315.6,3313.5,0.15094]
[1768493250917,1.33262741,3315.6,3313.8,0.15092]
[1768493251214,1.33262741,3315.6,3313.8,0.15373248]
[1768493253526,0.00246115,3315.6,3313.9,0.15092]
[1768493253736,0.00246115,3315.6,3314.4,0.00452748]
[1768493257834,1.33262741,3315.6,3314.4,0.00452748]
[1768493259332,0.00246115,3315.6,3314.4,0.00452748]
[1768493259720,1.33016626,3316.8,3314.4,0.00452748]
[1768493260126,1.33016626,3316.8,3314.9,0.15087]
[1768493260933,1.3331905,3316.8,3314.9,0.15087]
[1768493263731,1.3331905,3316.8,3315.0,0.15087]
[1768493264033,1.3331905,3316.8,3314.7,1.29474917]
[1768493264034,0.00302424,3316.8,3314.7,1.29474917]
[1768493264332,0.00302424,3316.8,3315.3,0.15085]
[1768493265132,1.3331905,3316.8,3314.8,3.018]
[1768493265334,1.48097626,3316.4,3314.4,0.00452748]
[1768493266026,1.33016626,3316.1,3314.4,0.00452748]
[1768493267131,1.48098626,3316.1,3314.4,0.00452748]
[1768493267338,1.48098626,3316.1,3313.8,0.00281248]
[1768493267339,1.33016626,3315.7,3313.8,0.00281248]
[1768493267536,1.33016626,3315.4,3312.6,0.15098]
[1768493267743,1.33016626,3315.1,3312.6,0.15098]
[1768493268039,1.48103626,3315.1,3312.6,0.15098]
[1768493268227,1.33016626,3314.8,3312.6,0.15098]
[1768493268423,1.33016626,3314.5,3312.1,0.24532799]
[1768493268635,1.33016626,3314.5,3312.1,0.00343773]
[1768493268938,1.33016626,3314.3,3312.1,0.00343773]
[1768493269131,1.3331991,3314.3,3312.1,0.00343773]
[1768493269440,0.00452748,3313.6,3312.1,0.00343773]
[1768493272331,1.38944219,3313.6,3312.1,0.00343773]
[1768493274144,0.00452748,3313.6,3312.1,0.00343773]
[1768493274448,0.00452748,3313.6,3312.2,0.151]
[1768493274935,0.00452748,3313.6,3312.3,0.15099]
[1768493275242,0.00452748,3313.6,3312.3,3.16999]
[1768493275640,0.00303284,3314.3,3312.6,0.00452748]
[1768493276738,1.38794755,3314.3,3312.6,0.00452748]
[1768493277046,0.00452748,3314.1,3312.6,0.00452748]
[1768493277350,0.00452748,3314.0,3312.6,0.00452748]
[1768493277541,1.38794755,3314.3,3312.6,0.00452748]
[1768493277735,0.00452748,3314.0,3312.6,0.00452748]
[1768493278140,0.00452748,3313.9,3312.6,0.00452748]
[1768493278449,0.00452748,3314.0,3312.6,0.00452748]
[1768493278838,0.00452748,3313.9,3312.6,0.00452748]
[1768493279043,0.00452748,3314.0,3312.6,0.00452748]
[1768493279532,1.38794755,3314.3,3312.6,0.00452748]
[1768493279746,0.00303284,3314.3,3312.6,0.15550748]
[1768493279945,0.00303284,3314.3,3312.7,0.15097]
[1768493280947,1.38491471,3315.6,3312.8,1.42429196]
[1768493281541,1.38491471,3315.6,3313.6,0.15093]
[1768493281940,0.00452748,3315.5,3313.6,0.15093]
[1768493282242,1.38944219,3315.5,3313.6,0.15093]
[1768493282441,1.38944219,3315.3,3313.6,0.15093]
[1768493282751,1.38944219,3315.3,3312.9,4.44329196]
[1768493282938,1.38491471,3315.3,3312.9,1.42429196]
[1768493283138,1.38491471,3315.3,3313.0,3.019]
[1768493283546,1.38491471,3315.0,3312.6,0.15098]
[1768493283845,1.38491471,3315.0,3312.1,0.00343773]
[1768493283846,1.38491471,3314.6,3312.2,0.151]
[1768493284245,0.00452748,3313.8,3312.4,0.15099]
[1768493284438,0.00452748,3313.7,3312.1,1.42772969]
[1768493284636,1.38491471,3315.2,3312.9,1.42429196]
[1768493284843,0.00337144,3315.6,3312.9,1.42429196]
[1768493285145,1.38828615,3315.6,3313.6,0.15093]
[1768493285350,1.38491471,3315.3,3312.9,4.81629196]
[1768493286348,1.38491471,3315.3,3313.6,0.15093]
[1768493286543,0.00452748,3315.0,3313.0,1.42429196]
[1768493286746,1.38491471,3315.0,3313.1,3.019]
[1768493286951,1.38491471,3315.0,3313.2,0.15095]
[1768493287139,0.15421144,3315.6,3313.4,0.15094]
[1768493287340,0.00337144,3315.6,3313.2,1.42429196]
[1768493287553,1.39281363,3315.6,3313.6,0.15093]
[1768493287754,1.38491471,3315.4,3313.6,0.15093]
[1768493287945,1.38944219,3315.3,3313.6,0.15093]
[1768493288350,0.00452748,3315.2,3313.6,0.15093]
[1768493288958,0.00452748,3315.1,3313.6,0.15093]
[1768493289153,0.00452748,3315.2,3313.6,0.15093]
[1768493289649,0.00452748,3315.1,3313.6,0.15093]
[1768493289851,1.38491471,3315.3,3313.6,0.15093]
[1768493289852,0.00452748,3315.2,3313.6,0.15093]
[1768493290251,0.00337144,3315.6,3314.0,0.15091]
[1768493290554,0.00337144,3315.6,3314.4,0.15089]
[1768493291055,0.00337144,3315.6,3314.5,0.15089]
[1768493291355,0.00337144,3315.6,3314.5,0.15404278]
[1768493291854,0.00337144,3315.6,3314.7,0.00452748]
[1768493292953,0.00452748,3315.6,3314.7,0.00452748]
[1768493293162,0.00452748,3315.3,3314.7,0.00452748]
[1768493293453,0.00452748,3315.6,3314.5,0.00315278]
[1768493293651,0.00452748,3315.4,3314.5,0.00315278]
[1768493293847,0.00452748,3315.5,3314.5,0.00315278]
[1768493294046,0.00452748,3315.3,3314.5,0.00315278]
[1768493294243,0.00452748,3315.2,3314.5,0.00315278]
[1768493294438,0.00452748,3315.1,3314.5,0.00315278]
[1768493294850,0.00452748,3315.0,3314.5,0.00315278]
[1768493295151,0.00452748,3315.1,3314.5,0.00315278]
[1768493295652,0.00452748,3315.0,3314.5,0.00315278]
[1768493295854,0.00452748,3315.1,3314.5,0.00315278]
[1768493296052,0.00452748,3314.9,3313.8,0.15092]
[1768493296350,0.00452748,3315.1,3313.3,1.191]
[1768493296554,1.38775323,3315.4,3313.6,0.15093]
[1768493296741,1.38775323,3315.4,3313.4,1.42429196]
[1768493296742,0.00283852,3315.4,3313.4,1.42429196]
[1768493296947,0.00283852,3315.4,3314.2,0.1509]
[1768493297252,0.00283852,3315.4,3314.5,0.15089]
[1768493298146,1.38491471,3316.6,3314.9,0.15087]
[1768493298350,1.38491471,3317.2,3315.0,0.15087]
[1768493298555,0.00452748,3317.0,3315.0,0.15087]
[1768493298754,0.00452748,3317.0,3315.2,0.15086]
[1768493298948,3.018,3318.1,3314.6,0.00452748]
[1768493298949,1.38491471,3316.3,3314.6,0.00452748]
[1768493299156,0.00452748,3316.0,3314.6,0.00452748]
[1768493299654,0.00452748,3315.8,3314.6,0.00452748]
[1768493299849,0.00452748,3315.7,3314.6,0.00452748]
[1768493300252,1.38491471,3315.8,3314.6,0.00452748]
[1768493300448,0.00452748,3315.4,3314.6,0.00452748]
[1768493300648,0.00452748,3315.2,3314.6,0.00452748]
[1768493300954,0.00452748,3315.1,3314.6,0.00452748]
[1768493301250,0.00452748,3315.0,3314.2,0.00332368]
[1768493301650,0.00452748,3315.2,3314.2,0.00332368]
[1768493301852,1.56285532,3315.2,3313.2,0.23544737]
[1768493302555,1.56285532,3315.2,3313.1,0.15096]
[1768493302855,1.56285532,3315.2,3313.1,0.1534018]
[1768493303656,1.56285532,3315.2,3313.1,0.0024418]
[1768493304257,1.54519738,3315.0,3313.1,0.0024418]
[1768493304553,1.69607738,3314.8,3313.1,0.0024418]
[1768493304757,1.54519738,3314.6,3313.1,0.0024418]
[1768493305257,0.9198053,3314.5,3312.0,0.15101]
[1768493305458,1.54519738,3314.4,3312.0,0.15101]
[1768493305959,1.54519738,3314.2,3312.0,0.15101]
[1768493306357,0.00452748,3313.5,3312.0,0.15369202]
[1768493306553,0.00816238,3313.5,3312.1,0.151]
[1768493308563,0.00816238,3313.5,3312.2,0.151]
[1768493309156,0.00816238,3313.5,3312.2,1.342]
[1768493309463,0.00816238,3313.5,3312.2,0.151]
[1768493310056,0.00816238,3313.5,3312.3,0.15099]
[1768493310265,0.00816238,3313.5,3312.4,0.15099]
[1768493311465,0.00816238,3313.5,3312.5,0.15098]
[1768493311668,1.54519738,3315.4,3312.6,1.43763427]
[1768493311866,1.54519738,3315.4,3313.1,0.15096]
[1768493312169,1.54519738,3315.1,3313.1,1.34196]
[1768493312364,1.54972486,3315.1,3313.1,1.34196]
[1768493312564,1.54519738,3314.8,3313.1,0.15096]
[1768493312762,0.00452748,3314.4,3313.1,0.15096]
[1768493313065,0.00452748,3314.3,3313.1,0.15096]
[1768493313565,0.00452748,3314.0,3312.5,0.15098]
[1768493313773,1.54972486,3314.0,3312.5,0.15098]
[1768493314070,0.00452748,3313.4,3312.0,0.00268202]
[1768493314467,0.00452748,3313.4,3312.0,0.15368202]
[1768493314767,0.00452748,3313.4,3312.1,0.151]
[1768493315164,0.00452748,3313.2,3312.1,0.151]
[1768493315367,0.00452748,3313.4,3312.1,0.151]
[1768493315558,0.00905496,3314.0,3312.6,0.15098]
[1768493315766,0.00452748,3313.7,3312.6,0.15098]
[1768493315966,0.00452748,3313.9,3312.6,0.15098]
[1768493316268,0.00452748,3313.8,3312.0,1.44031629]
[1768493316461,0.00452748,3314.0,3312.8,0.15097]
[1768493317771,0.00355685,3315.1,3312.9,2.62863427]
[1768493318072,0.00808433,3315.1,3313.5,0.15094]
[1768493318269,0.00808433,3315.1,3313.8,0.15092]
[1768493318270,0.00355685,3315.1,3313.8,0.15092]
[1768493318769,0.00355685,3315.1,3312.9,4.21]
[1768493318770,0.00355685,3315.1,3313.9,0.15092]
[1768493318974,0.00355685,3315.1,3314.0,0.15091]
[1768493319566,1.54519738,3316.4,3314.2,0.1509]
[1768493319878,1.54972486,3316.4,3314.2,0.15542748]
[1768493320063,0.00452748,3316.0,3314.2,0.15542748]
[1768493320462,0.00452748,3315.8,3314.2,0.15542748]
[1768493320670,0.00343201,3316.0,3314.4,1.43763427]
[1768493320977,0.00343201,3316.0,3314.4,1.44089901]
[1768493321672,0.00452748,3315.7,3314.5,1.191]
[1768493321868,0.00343201,3316.0,3314.5,1.191]
[1768493322684,0.00452748,3315.6,3314.4,0.00326474]
[1768493326466,1.54972486,3315.6,3314.4,0.00326474]
[1768493327882,1.54519738,3315.5,3314.4,0.00326474]
[1768493328083,1.54519738,3315.3,3312.7,0.15097]
[1768493328382,2.33649831,3315.4,3312.7,0.15097]
[1768493328383,1.54519738,3315.1,3312.7,0.15097]
[1768493328979,1.54519738,3315.1,3312.7,0.15429639]
[1768493329277,1.54519738,3314.9,3312.7,0.15429639]
[1768493329681,1.69606738,3314.9,3312.7,0.15429639]
[1768493329882,1.54519738,3314.9,3312.9,0.15096]
[1768493334084,1.54519738,3314.9,3313.1,0.15096]
[1768493334489,1.49558954,3315.5,3313.2,0.15095]
[1768493334787,1.49558954,3315.5,3313.4,0.15094]
[1768493335987,1.49558954,3315.5,3313.1,1.51073729]
[1768493335988,1.49558954,3315.5,3313.1,3.019]
[1768493337278,1.49558954,3315.5,3313.2,1.51073729]
[1768493337690,1.49558954,3315.5,3313.8,0.15092]
[1768493338089,1.49558954,3315.5,3313.2,1.51073729]
[1768493338889,1.49558954,3315.5,3313.3,0.15095]
[1768493339078,1.49558954,3315.5,3313.2,1.51073729]
[1768493339276,1.49558954,3315.5,3313.7,0.15093]
[1768493339680,1.49558954,3315.5,3313.8,0.15092]
[1768493340884,1.49558954,3315.5,3313.1,0.15095]
[1768493341285,1.49558954,3315.5,3312.8,4.21]
[1768493341479,1.49558954,3315.5,3313.8,0.15092]
[1768493341783,0.00452748,3315.6,3313.7,1.51073729]
[1768493342393,0.00452748,3315.6,3313.8,4.21]
[1768493342583,0.00452748,3315.6,3314.3,0.1509]
[1768493342783,0.00452748,3315.6,3313.9,1.51073729]
[1768493342984,0.00452748,3315.6,3314.5,0.15089]
[1768493343191,0.00452748,3315.6,3314.0,1.191]
[1768493343496,1.50011702,3315.6,3313.9,0.15092]
[1768493343687,1.50011702,3315.6,3313.5,3.019]
[1768493344194,1.49558954,3315.2,3312.7,1.51406368]
[1768493344384,1.49558954,3315.2,3312.7,1.66503368]
[1768493344580,1.49558954,3315.0,3312.7,1.66503368]
[1768493345188,1.49558954,3315.0,3312.7,0.15429639]
[1768493345388,1.49558954,3315.0,3312.8,0.15097]
[1768493345588,1.49558954,3315.0,3313.0,0.15096]
[1768493346596,1.49558954,3315.0,3313.1,0.15096]
[1768493346786,1.50011702,3315.6,3313.5,0.15094]
[1768493348190,1.49558954,3315.4,3312.8,1.66170729]
[1768493348792,1.49558954,3315.1,3312.8,0.15097]
[1768493348997,0.91877407,3315.0,3312.8,0.15097]
[1768493349197,1.49558954,3314.8,3312.8,0.15097]
[1768493349793,1.49558954,3314.8,3312.7,1.51406368]
[1768493350007,1.49558954,3315.4,3313.2,0.15095]
[1768493350205,1.49558954,3315.4,3312.7,1.51406368]
[1768493350499,1.49558954,3315.4,3313.2,1.51073729]
[1768493350704,0.00452748,3315.6,3314.2,0.1509]
[1768493351002,0.00452748,3315.6,3312.8,9.016]
[1768493351003,0.00343201,3316.0,3314.0,1.51073729]
[1768493351199,0.00343201,3316.0,3314.2,1.51073729]
[1768493351399,0.00343201,3316.0,3314.9,0.15087]
[1768493351712,1.49558954,3316.8,3315.1,0.15086]
[1768493351893,1.49558954,3317.8,3314.7,1.51073729]
[1768493352092,1.49558954,3317.6,3315.3,0.15086]
[1768493352295,1.49558954,3317.0,3314.4,0.1509]
[1768493352506,1.49558954,3316.8,3314.4,0.1509]
[1768493352802,1.49558954,3316.6,3314.4,0.15345048]
[1768493353003,0.91941343,3316.5,3314.4,0.15345048]
[1768493353206,1.49558954,3316.6,3315.3,0.00452748]
[1768493353409,1.49558954,3316.4,3315.3,0.00452748]
[1768493353900,1.49558954,3316.2,3314.4,0.00255048]
[1768493354408,1.49558954,3316.0,3314.4,0.00255048]
[1768493356602,0.00452748,3316.2,3314.4,0.00255048]
[1768493356796,0.00452748,3316.2,3314.4,1.51328777]
[1768493357606,0.00452748,3316.2,3314.8,0.15088]
[1768493358507,0.00452748,3316.2,3314.9,1.66160729]
[1768493359805,0.00452748,3316.2,3314.9,0.15087]
[1768493360001,0.00452748,3316.2,3314.4,0.00255048]
[1768493360310,0.00452748,3316.2,3314.4,4.21055048]
[1768493361204,0.00452748,3316.2,3314.4,0.00255048]
[1768493361400,0.00452748,3316.2,3314.4,1.19255048]
[1768493361600,0.00452748,3316.2,3314.5,0.15089]
[1768493361796,0.00452748,3316.2,3314.6,0.15089]
[1768493362409,0.00452748,3316.2,3314.5,1.52072635]
[1768493362708,0.00452748,3316.2,3315.1,0.15086]
[1768493362913,0.00452748,3316.2,3314.6,1.52072635]
[1768493363102,0.00452748,3316.2,3314.6,2.71072635]
[1768493364108,1.61751784,3316.2,3314.5,0.15089]
[1768493364419,1.61751784,3316.2,3314.4,0.00255048]
[1768493365211,0.00452748,3316.2,3314.6,0.15089]
[1768493365508,0.00452748,3316.2,3315.1,0.15086]
[1768493365713,0.00452748,3316.2,3315.1,1.19]
[1768493365915,0.00452748,3316.2,3315.3,0.15086]
[1768493366308,0.00321391,3316.8,3315.3,0.15086]
[1768493366708,0.00321391,3316.8,3314.8,1.19]
[1768493366905,1.55329714,3316.8,3314.8,1.19]
[1768493367312,1.55329714,3316.8,3314.8,1.34088]
[1768493368103,1.55329714,3316.8,3314.9,0.15087]
[1768493369215,1.70408714,3316.8,3314.4,1.62802151]
[1768493369412,1.55329714,3316.8,3314.8,0.15088]
[1768493370920,1.70089323,3316.5,3314.4,0.00255048]
[1768493371823,1.70089323,3316.5,3315.1,0.00452748]
[1768493372526,1.55008323,3316.0,3314.4,0.15345048]
[1768493373412,1.55008323,3316.0,3314.4,0.00255048]
[1768493373816,1.55008323,3315.7,3312.7,5.35092225]
[1768493374018,0.00452748,3316.1,3313.3,0.15095]
[1768493374019,1.55008323,3315.4,3313.3,0.15095]
[1768493374922,1.55008323,3315.4,3313.3,0.15412624]
[1768493374923,1.70093323,3315.4,3313.3,0.15412624]
[1768493376621,1.55008323,3315.2,3313.3,0.15412624]
[1768493376825,1.70094323,3315.2,3313.3,0.00317624]
[1768493377830,1.55008323,3315.0,3313.3,0.00317624]
[1768493378017,1.70095323,3315.0,3313.3,0.00317624]
[1768493379330,1.55008323,3315.0,3313.3,0.00317624]
[1768493379521,1.55008323,3315.6,3313.3,0.15412624]
[1768493380229,1.55008323,3315.4,3313.3,0.15412624]
[1768493381523,0.917672,3315.3,3313.3,0.15412624]
[1768493381720,1.70093323,3315.4,3313.3,0.15412624]
[1768493382422,1.55008323,3315.2,3313.3,0.15412624]
[1768493382624,0.15086,3315.3,3313.3,1.77959727]
[1768493382825,0.00452748,3316.1,3313.7,1.62547103]
[1768493382826,1.55461071,3316.1,3313.7,1.62547103]
[1768493383029,1.55461071,3316.1,3314.3,0.1509]
[1768493383723,1.55461071,3316.1,3313.7,1.62547103]
[1768493383724,1.55461071,3316.1,3314.4,0.1509]
[1768493386031,1.55461071,3316.1,3314.0,0.15091]
[1768493386729,1.70543071,3316.1,3314.0,0.15091]
[1768493392722,1.55461071,3316.1,3314.4,0.1509]
[1768493394435,0.00452748,3316.1,3314.4,1.69649377]
[1768493394734,0.00321391,3316.8,3315.3,0.15085]
[1768493395840,1.69651824,3316.8,3314.9,0.00452748]
[1768493398038,0.00321391,3316.8,3315.6,0.15084]
[1768493399338,1.69330433,3317.5,3315.8,0.15083]
[1768493399738,1.84403433,3318.1,3315.9,0.15083]
[1768493400242,1.84793627,3318.1,3315.9,0.15462294]
[1768493400737,0.15074,3317.8,3315.9,0.00379294]
[1768493400943,1.69330433,3317.7,3315.9,0.00379294]
[1768493401428,0.00390194,3318.1,3316.0,0.15082]
[1768493401737,0.00390194,3318.1,3316.6,1.54559377]
[1768493402045,0.00390194,3318.1,3316.3,4.206]
[1768493402434,0.00390194,3318.1,3316.3,4.35681]
[1768493402740,1.69720627,3318.1,3315.9,0.00379294]
[1768493402930,0.00390194,3318.1,3316.5,1.69639377]
[1768493403331,0.00390194,3318.1,3316.5,0.1508]
[1768493403536,1.69720627,3318.1,3315.9,1.54938671]
[1768493403748,0.00452748,3317.6,3315.9,1.54938671]
[1768493404435,1.69783181,3317.6,3315.9,0.00379294]
[1768493405130,1.69330433,3317.5,3315.9,0.00379294]
[1768493405335,0.00452748,3317.6,3315.9,1.54938671]
[1768493405542,0.00452748,3317.6,3316.0,1.54559377]
[1768493405730,0.00452748,3317.6,3316.5,1.69639377]
[1768493406739,0.00452748,3317.6,3316.5,0.1508]
[1768493407241,0.00452748,3317.6,3315.9,2.73838671]
[1768493407740,0.00452748,3317.6,3316.3,0.15081]
[1768493407945,0.00452748,3317.6,3316.4,0.15081]
[1768493408439,0.00452748,3317.6,3315.9,0.00379294]
[1768493408647,0.00452748,3317.6,3315.9,1.19279294]
[1768493408835,0.00452748,3317.6,3316.0,0.15082]
[1768493409139,0.00390194,3318.1,3316.4,0.15533748]
[1768493411344,1.69720627,3318.1,3316.4,0.00452748]
[1768493413544,1.69330433,3318.0,3316.4,0.00452748]
[1768493416138,0.00390194,3318.1,3316.4,0.00452748]
[1768493416343,1.69720627,3318.1,3316.4,0.00452748]
[1768493417143,1.84793627,3318.1,3316.4,0.00452748]
[1768493417346,0.15073,3318.0,3316.4,0.00452748]
[1768493417648,1.69330433,3317.9,3316.4,0.00452748]
[1768493418047,1.69330433,3317.6,3316.4,0.00452748]
[1768493418354,1.69330433,3317.4,3315.9,0.00379294]
[1768493420648,0.00452748,3317.5,3315.9,1.54938671]
[1768493420848,0.00390194,3318.1,3316.4,1.59688018]
[1768493421053,0.00390194,3318.1,3316.4,4.61288018]
[1768493421457,1.67774707,3318.1,3316.6,0.1508]
[1768493421648,1.67774707,3318.1,3316.3,0.00452748]
[1768493424350,1.67384513,3317.9,3316.3,0.00452748]
[1768493424550,1.70758032,3317.7,3316.3,0.00452748]
[1768493425259,1.70758032,3317.5,3316.3,0.00452748]
[1768493426351,0.92864209,3317.4,3316.3,0.00452748]
[1768493426550,1.70758032,3317.5,3316.3,0.00452748]
[1768493426751,0.92868885,3317.4,3316.3,0.00452748]
[1768493426951,1.70758032,3318.0,3316.3,0.00452748]
[1768493427152,0.92888019,3317.9,3316.3,0.00452748]
[1768493427352,0.92888019,3317.8,3316.3,0.00452748]
[1768493427559,0.92888019,3317.7,3316.3,0.00452748]
[1768493427859,1.70758032,3318.0,3316.3,0.00452748]
[1768493428060,0.9295022,3317.9,3316.3,0.00452748]
[1768493428257,0.9295022,3317.8,3316.3,0.00452748]
[1768493428561,0.9295022,3317.7,3316.3,0.00452748]
[1768493428761,1.70758032,3318.0,3316.3,0.00452748]
[1768493428956,0.92560598,3317.9,3316.3,0.00452748]
[1768493429160,0.00390194,3318.1,3316.9,0.15078]
[1768493429459,1.70758032,3319.3,3317.0,0.15078]
[1768493429657,2.63338724,3319.2,3317.0,0.15078]
[1768493429962,0.92580692,3319.1,3317.0,0.15078]
[1768493430655,0.0021499,3319.1,3317.5,0.15076]
[1768493430857,1.18618769,3320.3,3317.5,1.60800368]
[1768493430858,1.70758032,3319.8,3317.5,1.60800368]
[1768493431056,0.92538059,3319.7,3317.5,1.60800368]
[1768493431260,1.70758032,3319.8,3317.5,1.60800368]
[1768493431765,1.70758032,3320.3,3317.5,1.60800368]
[1768493431955,0.92423377,3320.2,3318.2,0.15072]
[1768493432155,2.63181409,3320.1,3318.3,0.00452018]
[1768493432364,1.70758032,3320.1,3318.3,0.00750019]
[1768493435765,1.70758032,3320.1,3318.3,0.15822019]
[1768493436659,1.70758032,3320.1,3318.3,0.00750019]
[1768493437057,0.9204304,3320.0,3318.3,0.00750019]
[1768493437252,1.70758032,3319.9,3318.3,0.00750019]
[1768493437661,0.15386532,3320.3,3318.3,0.00750019]
[1768493437868,1.70758032,3320.2,3318.3,0.00750019]
[1768493440265,1.70758032,3320.0,3318.3,0.00750019]
[1768493440461,1.70758032,3319.6,3317.5,0.15076]
[1768493440667,1.70758032,3319.6,3316.9,1.60800368]
[1768493440668,1.70758032,3319.3,3316.9,4.03478]
[1768493440963,1.70758032,3319.3,3317.0,0.15078]
[1768493441468,1.70758032,3319.3,3317.0,0.15358461]
[1768493441953,0.00452018,3319.6,3317.0,0.00280461]
[1768493441954,1.70758032,3318.7,3317.0,0.00280461]
[1768493442155,1.70758032,3318.5,3317.0,0.00280461]
[1768493445370,1.70758032,3318.4,3316.6,0.1508]
[1768493446368,1.70758032,3317.7,3316.6,0.00332047]